Cogmind - Beta 10.2 @@@ ROGUE MODE // 2022.02.19 @ 19:49:41 Player: Jezoensis Result: Self-destructed Performance ------------- Evolutions (1) 500 Regions Visited (5) 1000 Robots Destroyed (46) 230 Value Destroyed (930) 930 Prototype IDs (26) 520 Alien Tech Used (0) 0 Bonus (300) 300 TOTAL SCORE: 3480 Bonus ------- Aligned with FarCom 300 Cogmind --------- Core Integrity 295/400 Matter 300/300 Energy 280/280 System Corruption 0% Temperature Cool (0) Movement Treading (160) Location -9/Exiles Parts ------- > --- POWER (1) -------- Heavy Ion Engine > --- PROPULSION (3) --- Light Treads Light Treads Light Treads > --- UTILITY (3) ------ Large Storage Unit Large Storage Unit Improved Terrain Scanner > --- WEAPON (2) ------- Advanced Beam Cannon Advanced Beam Cannon > --- INVENTORY (16) --- Heavy Ion Engine Light Treads Cooling System Medium Storage Unit High-capacity Storage Unit High-capacity Matter Pod (200) Improved Sensor Array Advanced Beam Cannon Autogun Autogun Autogun Autogun Improved Light Cannon EMP Blaster Rocket Launcher Mining Laser Peak State ------------ > --- POWER ------------ Heavy Ion Engine > --- PROPULSION ------- Light Treads Light Treads Light Treads > --- UTILITY ---------- Large Storage Unit Large Storage Unit Improved Terrain Scanner > --- WEAPON ----------- Advanced Beam Cannon Advanced Beam Cannon > --- INVENTORY -------- Heavy Ion Engine Heavy Ion Engine Light Treads Cooling System Medium Storage Unit High-capacity Matter Pod Improved Sensor Array Advanced Beam Cannon Advanced Beam Cannon Autogun Autogun Autogun Autogun Improved Light Cannon Rocket Launcher Mining Laser [Rating: 19] Favorites ----------- Power Ion Engine Engine Ion Engine Propulsion Light Treads Treads Light Treads Utility Large Storage Unit Device Improved Terrain Scanner Storage Large Storage Unit Protection Light Armor Plating Weapon Advanced Beam Cannon Energy Gun Heavy EM Pulse Gun Energy Cannon Advanced Beam Cannon Ballistic Gun Assault Rifle Ballistic Cannon Light Cannon Launcher Rocket Launcher Special Weapon Mining Laser Build | -11 -10 -10 -9 -9 -9 ------- Run | Scr Mat Min Mat Min Exi Slots Evolved 2 | . . . 2 . . Power . | . . . . . . Propulsion 1 | . . . 1 . . Utility 1 | . . . 1 . . Weapon . | . . . . . . Parts Attached 61 | 7 18 1 30 5 . Power 4 | 1 . . 3 . . Engine 4 | 1 . . 3 . . Core . | . . . . . . Reactor . | . . . . . . Propulsion 7 | 2 1 . 4 . . Treads 7 | 2 1 . 4 . . Leg . | . . . . . . Wheel . | . . . . . . Hover . | . . . . . . Flight . | . . . . . . Utility 21 | 2 4 1 12 2 . Device 14 | 1 3 . 8 2 . Storage 5 | 1 1 1 2 . . Processor . | . . . . . . Hackware . | . . . . . . Protection 2 | . . . 2 . . Artifact . | . . . . . . Weapon 29 | 2 13 . 11 3 . Energy Gun 4 | . 3 . 1 . . Energy Cannon 8 | . . . 6 2 . Ballistic Gun 13 | 2 8 . 3 . . Ballistic Cannon 1 | . 1 . . . . Launcher 2 | . . . 1 1 . Special Weapon 1 | . 1 . . . . Impact Weapon . | . . . . . . Slashing Weapon . | . . . . . . Piercing Weapon . | . . . . . . Special Melee Weapon . | . . . . . . Unidentified Prototypes 3 | . . . 3 . . Parts Lost 6 | . . . 5 1 . Power . | . . . . . . Propulsion 3 | . . . 3 . . Utility . | . . . . . . Weapon 3 | . . . 2 1 . Highest Loss Streak 2 | . . . 2 1 . Average Slot Usage (%) 99 | . 99 100 97 100 100 Engine 12 | . 14 14 11 11 11 Treads 30 | . 28 28 30 33 33 Device 12 | . 13 3 13 11 11 Storage 18 | . 14 24 18 22 22 Energy Gun 5 | . 5 28 4 . . Energy Cannon 9 | . . . 13 22 22 Ballistic Gun 8 | . 21 . 3 . . Naked Turns . | . . . . . . Heaviest Build 50 | 13 29 35 50 49 49 Greatest Support 60 | 40 40 40 60 60 60 Greatest Overweight (x) 1 | . . . 1 . . Average Overweight (x) . | . . . . . . Largest Inventory Capacity 16 | 6 10 14 16 16 16 Average Capacity 12 | 5 8 13 14 16 16 Most Carried 16 | 4 10 11 16 15 16 Average Carried 10 | 2 7 10 10 14 15 Final Capacity 16 | 6 10 14 16 16 16 Final Carried 16 | 4 10 11 15 15 16 Class Distribution -------------------- 72% | Mutant 27% | Scavenger-Mutant Dominant Class ---------------- Mutant | -10/Materials Mutant | -10/Mines Mutant | -9/Materials Scavenger-Mutant | -9/Mines Scavenger-Mutant | -9/Exiles Resources | -11 -10 -10 -9 -9 -9 ----------- Run | Scr Mat Min Mat Min Exi Matter Collected 1005 | 243 173 170 359 60 . Remotely . | . . . . . . Salvage Created 1429 | 53 251 141 962 22 . Parts 96 | 9 20 9 50 8 . Haulers Intercepted 6 | . 1 . 5 . . Recyclers Shooed 1 | 1 . . . . . Parts Field Recycled . | . . . . . . Retrieved Matter . | . . . . . . Parts Self-Destructed . | . . . . . . Prevented . | . . . . . . Kills | -11 -10 -10 -9 -9 -9 ------- Run | Scr Mat Min Mat Min Exi Combat Hostiles Destroyed 33 | . 8 5 16 4 . Guns 17 | . 8 4 5 . . Cannons 10 | . . . 9 1 . AOE 6 | . . 1 2 3 . Classes Destroyed 9 | 1 5 . 3 . . Builder 1 | . 1 . . . . Tunneler 3 | 3 . . . . . Hauler 6 | . 1 . 5 . . Recycler 1 | . . . 1 . . Watcher 2 | . 1 . 1 . . Swarmer 15 | . 6 3 2 4 . Grunt 14 | . 2 2 10 . . Duelist 1 | . . . 1 . . Sentry 3 | . . . 3 . . Best Kill Streak 9 | 1 3 3 9 5 . Combat Bots Only 4 | . 3 3 4 4 . Max Kills in Single Turn 2 | 1 1 2 2 2 . Gunslinging 1 | . . 1 . . . Exploded 2 | . . 1 2 2 . Melee . | . . . . . . Uniques/NPCs Destroyed . | . . . . . . Combat | -11 -10 -10 -9 -9 -9 -------- Run | Scr Mat Min Mat Min Exi Damage Taken 1478 | . 224 54 1106 94 . Core 115 | . 10 . 79 26 . Absorbed by Shields . | . . . . . . Core Remaining (%) 98 | 100 . 96 . . . Volleys Fired 105 | 7 27 6 60 5 . Largest 2 | 2 2 2 2 2 . Hottest 136 | 40 100 90 136 136 . Shots Fired 205 | 14 52 12 119 8 . Gun 117 | 14 43 12 48 . . Cannon 83 | . 7 . 70 6 . Launcher 3 | . . . 1 2 . Special 2 | . 2 . . . . Kinetic 75 | 14 36 . 25 . . Thermal 78 | . 2 . 70 6 . Explosive 3 | . . . 1 2 . Electromagnetic 49 | . 14 12 23 . . Robot Hit Streak 14 | 3 8 6 14 1 . Robot Miss Streak 6 | 1 6 1 3 5 . Penetration Max . | . . . . . . Secondary Targets 3 | . 1 2 . . . Max Gunslinging Chain 1 | . 1 1 . . . Shots Hit Robots 126 | 10 23 10 82 1 . Core Hits 53 | 3 12 6 28 4 . Critical Hits 11 | . 1 . 10 . . Critical Kills 4 | . 1 . 3 . . Critical Parts Destroyed 7 | . . . 7 . . Melee Attacks . | . . . . . . Impact . | . . . . . . Slashing . | . . . . . . Piercing . | . . . . . . Sneak Attacks . | . . . . . . Combat Hostiles . | . . . . . . Follow-up Attacks . | . . . . . . Damage Inflicted 2538 | 104 372 219 1692 151 . Guns 999 | 104 263 155 477 . . Cannons 1197 | . 65 . 1110 22 . Explosions 303 | . 32 64 89 118 . Melee . | . . . . . . Ramming 39 | . 12 . 16 11 . Kinetic 578 | 104 237 . 237 . . Thermal 1228 | . 32 64 1110 22 . Explosive 207 | . . . 89 118 . Electromagnetic 486 | . 91 155 240 . . Impact . | . . . . . . Slashing . | . . . . . . Piercing . | . . . . . . Highest Corruption . | . . . . . . Average Corruption . | . . . . . . Corruption Purged . | . . . . . . Overload Shots . | . . . . . . Overflow Damage 1 | . . . 1 . . Projectiles 1 | . . . 1 . . Explosions . | . . . . . . Melee . | . . . . . . Knockbacks . | . . . . . . Impact . | . . . . . . Kinetic . | . . . . . . Secondary . | . . . . . . Self-Inflicted Damage 56 | . . 16 . 40 . Shots 2 | . . 1 . 1 . Rammed 9 | . 2 1 4 2 . Targets Rammed 11 | . 3 1 5 2 . Kicked . | . . . . . . Crushed 2 | . 1 . 1 . . Highest Temperature 150 | . 90 150 138 6 . Average Temperature 41 | . 27 63 42 3 . Received Heat Transfer 513 | . 48 18 447 . . Siege Activations . | . . . . . . Robots Corrupted . | . . . . . . Combat Hostiles . | . . . . . . Parts Fried 1 | . . . 1 . . Impact Corruptions . | . . . . . . Robots Melted . | . . . . . . Combat Hostiles . | . . . . . . Parts Melted 1 | . . . 1 . . Heat Transferred 1998 | . . . 1961 37 . Parts Sabotaged . | . . . . . . Parts Stolen . | . . . . . . Parts Stripped . | . . . . . . Power Chain Reactions 2 | . 1 1 . . . Missiles Intercepted . | . . . . . . Alert | -11 -10 -10 -9 -9 -9 ------- Run | Scr Mat Min Mat Min Exi Peak Influence 347 | 15 220 142 347 245 . Initial 135 | . 9 22 55 135 . Average 138 | 6 73 121 188 243 . Maximum Alert Level 1 | . 1 . 1 1 . Low Security (%) 68 | 100 92 100 61 . . Level 1 31 | . 7 . 38 99 . Level 2 . | . . . . . . Level 3 . | . . . . . . Level 4 . | . . . . . . Level 5 . | . . . . . . High Security . | . . . . . . Max Security . | . . . . . . Squads Dispatched 1 | . 1 . . . . Investigation 1 | . 1 . . . . Extermination . | . . . . . . Reinforcement . | . . . . . . Assault . | . . . . . . Garrison . | . . . . . . Intercept . | . . . . . . Construction Impeded . | . . . . . . Haulers Reinforced . | . . . . . . Stealth | -11 -10 -10 -9 -9 -9 --------- Run | Scr Mat Min Mat Min Exi Distress Signals 3 | . . . 3 . . Communications Jammed . | . . . . . . Distress Signals . | . . . . . . Times Spotted 54 | . 21 3 26 4 . Peak Tracking Total 6 | . 5 2 6 4 . Tactical Retreats 5 | . 3 . 2 . . Traps | -11 -10 -10 -9 -9 -9 ------- Run | Scr Mat Min Mat Min Exi Traps Triggered . | . . . . . . Indirectly . | . . . . . . Trap Hack Attempts . | . . . . . . Triggered . | . . . . . . Disarmed . | . . . . . . Reprogrammed . | . . . . . . Reused . | . . . . . . Traps Extracted . | . . . . . . Installed . | . . . . . . Triggered . | . . . . . . Machines | -11 -10 -10 -9 -9 -9 ---------- Run | Scr Mat Min Mat Min Exi Machines Disabled 2 | . . . . 2 . Max in Single Turn 2 | . . . . 2 . Machines Sabotaged . | . . . . . . Garrisons Compromised . | . . . . . . Overloaded Fab Kills . | . . . . . . Fab Network Shutdowns . | . . . . . . Hacking | -11 -10 -10 -9 -9 -9 --------- Run | Scr Mat Min Mat Min Exi Machines Accessed 11 | . 8 . 2 . 1 Terminals 9 | . 7 . 2 . . Fabricators . | . . . . . . Repair Stations . | . . . . . . Recycling Units 1 | . 1 . . . . Scanalyzers . | . . . . . . Garrison Access . | . . . . . . Total Hacks 32 | . 26 . 5 . 1 Successful 16 | . 12 . 3 . 1 Failed 15 | . 13 . 2 . . Catastrophic . | . . . . . . Database Lockouts 1 | . 1 . . . . Manual 28 | . 23 . 4 . 1 Terminals 30 | . 25 . 5 . . Fabricators . | . . . . . . Repair Stations . | . . . . . . Recycling Units 1 | . 1 . . . . Scanalyzers . | . . . . . . Garrison Access . | . . . . . . Terminal Hacks 8 | . 6 . 1 . 1 Robot Analysis 3 | . 3 . . . . Branch Access Points 1 | . . . 1 . . Terminal Index 1 | . 1 . . . . Locate Traps 2 | . 2 . . . . EX-Prototype ID Bank 1 | . . . . . 1 Fabricator Hacks . | . . . . . . Repair Station Hacks . | . . . . . . Recycling Unit Hacks . | . . . . . . Scanalyzer . | . . . . . . Garrison Access Hacks . | . . . . . . Unauthorized Hacks 8 | . 6 . 2 . . Terminals 7 | . 5 . 2 . . Track 3 | . 2 . 1 . . Botnet 3 | . 2 . 1 . . Operators 1 | . 1 . . . . Fabricators . | . . . . . . Repair Stations . | . . . . . . Recycling Units 1 | . 1 . . . . Recyclers 1 | . 1 . . . . Scanalyzers . | . . . . . . Garrison Access . | . . . . . . Data Cores Recovered . | . . . . . . Used . | . . . . . . Hacking Detections 9 | . 7 . 2 . . Full Trace Events 1 | . 1 . . . . Feedback Events . | . . . . . . Feedback Blocked . | . . . . . . Robot Schematics Acquired . | . . . . . . Robots Built . | . . . . . . Matter . | . . . . . . Time . | . . . . . . Total Robot Build Rating . | . . . . . . Part Schematics Acquired . | . . . . . . Parts Built . | . . . . . . Matter . | . . . . . . Time . | . . . . . . Total Part Build Rating . | . . . . . . Parts Repaired . | . . . . . . Time . | . . . . . . Parts Recycled . | . . . . . . Recycled Matter . | . . . . . . Retrieved Matter . | . . . . . . Retrieved Components . | . . . . . . Parts Scanalyzed . | . . . . . . Part Schematics Acquired . | . . . . . . Parts Damaged . | . . . . . . Bothacking | -11 -10 -10 -9 -9 -9 ------------ Run | Scr Mat Min Mat Min Exi Used RIF Installer . | . . . . . . Robots Hacked . | . . . . . . Non-combat . | . . . . . . Combat . | . . . . . . Robot Hacks Applied . | . . . . . . Relay Couplers Released . | . . . . . . Robots Rewired . | . . . . . . Allies Hacked . | . . . . . . Hacks Repelled . | . . . . . . Allies | -11 -10 -10 -9 -9 -9 -------- Run | Scr Mat Min Mat Min Exi Total Allies . | . . . . . . Largest Group . | . . . . . . Highest-Rated Group . | . . . . . . Highest-Rated Ally . | . . . . . . Total Orders . | . . . . . . Ally Attacks . | . . . . . . Total Damage . | . . . . . . Kills . | . . . . . . Allies Corrupted . | . . . . . . Allies Melted . | . . . . . . Intel | -11 -10 -10 -9 -9 -9 ------- Run | Scr Mat Min Mat Min Exi Robot Analysis Total 3 | . 3 . . . . Derelict Logs Recovered . | . . . . . . Drone Launches . | . . . . . . Drone Recoveries . | . . . . . . Exploration | -11 -10 -10 -9 -9 -9 ------------- Run | Scr Mat Min Mat Min Exi Turns Passed 2524 | 114 890 183 723 377 237 Spaces Moved 1280 | 62 466 101 283 221 147 Core 17 | 17 . . . . . Treads 1263 | 45 466 101 283 221 147 Legs . | . . . . . . Wheels . | . . . . . . Hover . | . . . . . . Flight . | . . . . . . Fastest Speed 50 | 50 160 160 160 160 160 Average Speed 158 | 129 160 160 161 160 160 Slowest Speed 180 | 160 160 160 180 160 160 Overloaded Moves . | . . . . . . Propulsion Burnouts . | . . . . . . Robots Hopped . | . . . . . . Cave-ins Triggered . | . . . . . . Exploration Rate (%) 43 | 5 86 41 28 57 45 Regions Visited 5 Branch Regions 3 Pre-discovered Areas . | . . . . . . Known Exits Taken 1 | . . . 1 . . Unknown Exits Taken 4 | 1 1 1 . 1 . Scrap Searched 2 | . . 1 . 1 . Spaces Dug 2 | . 2 . . . . Terrain Destroyed 30 | . 8 3 8 11 . Melee . | . . . . . . Projectile 3 | . 2 . . 1 . AOE 27 | . 6 3 8 10 . Terrain Rammed . | . . . . . . Walls Destroyed . | . . . . . . Machines Disabled . | . . . . . . Actions | -11 -10 -10 -9 -9 -9 --------- Run | Scr Mat Min Mat Min Exi Total 1550 | 81 555 109 424 233 148 Wait 25 | . 15 . 10 . . Move 1276 | 61 465 100 283 220 147 Hop . | . . . . . . Pick Up 41 | 6 13 1 19 1 1 Fast Attach 14 | 5 4 . 5 . . Attach 12 | 2 3 . 6 1 . Detach 1 | . . . 1 . . Swap 35 | . 11 1 19 4 . Drop 31 | . 14 . 17 . . Fire 105 | 7 27 6 60 5 . Melee . | . . . . . . Ram . | . . . . . . Kick . | . . . . . . Crush 10 | . 3 1 4 2 . Escape Stasis . | . . . . . . Rewire . | . . . . . . Trap . | . . . . . . Miscellaneous . | . . . . . . Route ------- -11/Scrapyard -10/Materials (discovered 4 exits: *Mat x3 / [*Min]) -10/Mines -9/Materials (discovered 3 exits: *Min x2 / Sto) -9/Mines (discovered 2 exits: [*Mat] / *Exi) -9/Exiles History --------- Turn | Location | Event 14 | -11/Scrapyard | Discovered new exit (range 16) 115 | -11/Scrapyard | Entered Materials 160 | -10/Materials | Discovered new exit (range 7) 295 | -10/Materials | Discovered new exit (range 10) 306 | -10/Materials | Build established: Mutant 612 | -10/Materials | Discovered new exit (range 6) 729 | -10/Materials | Discovered new exit (range 9) 818 | -10/Materials | Central database locked down 1005 | -10/Materials | Entered Mines 1170 | -10/Mines | Discovered new exit (range 12) 1188 | -10/Mines | Entered Materials 1188 | -9/Materials | Evolved 2 slots: Propulsion x1, Utility x1 1499 | -9/Materials | Discovered new exit (range 12) 1529 | -9/Materials | Identified exit to Mines 1529 | -9/Materials | Identified exit to Storage 1911 | -9/Materials | Entered Mines 2115 | -9/Mines | Discovered new exit (range 15) 2141 | -9/Mines | Build established: Scavenger-Mutant 2281 | -9/Mines | Deemed a non-threat by the Exiles lab entrance 2281 | -9/Mines | Discovered new exit (range 5) 2288 | -9/Mines | Entered Exiles 2327 | -9/Exiles | Met 8R-AWN 2356 | -9/Exiles | Met EX-HEX 2462 | -9/Exiles | Met EX-BIN 2480 | -9/Exiles | Aligned with FarCom system 2481 | -9/Exiles | Given EX-Vault access code 2518 | -9/Exiles | Opened EX-Vault 2525 | -9/Exiles | Self-destructed Last Messages --------------- Modified TNC 0b10 Alert Chip Cloak of Protection Skeleton Box Trap Reconfigurator Supersonic Drone Bay Army-in-a-Box PSU Rigger Chronowheel AWS/Thermal Latent Energy Streamer Gui. Plasma Cannon Firepult YOLO Cannon AWS/Gauss XL Autogun Array AWS/Autocannon Field Lobotomy Kit Longsword +1 Deploy-a-Sentry Map ----- +----------------------------------------------------+ | | | | | | | | | | | | | | | | | | | | | | | | | | | | | | | | | | | | | | | | | | | | | ???????????????????#########?????????????????????? | | ???????????????????# ] ] #?????????????????????? | | ???????????????????# ! #?????????????????????? | | ???????????????????# @ #?????????????????????? | | ???????????#???????# X#?????????????????????? | | ?????????????????#?## ##?????????????????????? | | ????????????????####X #??????????????????????? | | ???????????????????## #??????????????????????? | | ?????????#????#?????# #??????????????????????? | | ????????????????????# #???#??????????????????? | | ????????????????????# #?"""""????????????????? | | ????????????????????# ## """???????????????? | | ????????????????????# X""???????????????? | | ????????#?????????#?# ## """???????????????? | | ?????????????#####??# #??""""????#???????????? | | ?????????????""""""?# #???#?#??#?????????????? | | ?????????????"""" ## #??????????????????????? | | ??????#?????#""X" #??????????????????????? | | ????????????#" #????????#?????????????? | | ????????????#" ## #?????????#????????????? | | ????????????#""""""?# #?#########????????????? | | ????????????##"###??# #?#"""""""#????????????? | | ????????????? ??????# #?#"""""""#????????????? | | ???????????????#????# ###"""""""#???#????????? | | ???????????????????## ###"" """"#???????#????? | | ???????????????????#" """"#????????????? | | ???????????????????#" """#????????????? | | ???????????????????#" """#????????????? | +----------------------------------------------------+ Best States ------------- Heat Dissipation 50 Energy Generation 14 Energy Capacity 280 Matter Stores 300 Matter Capacity 300 Sight Range 16 Terrain Scan Range 16 Terrain Scan Density 10 Armor Coverage 150 Evasion (%) 50 Recoil Reduction 3 Item Schematics ----------------- None Robot Schematics ------------------ None Fabricated ------------ Nothing Alien Tech Used ----------------- None Achievements -------------- None Challenges ------------ None Game ------ Seed HugePointyCloak Manual? 0 Play Time 00:24:01 Cumulative 524.9 hours Start 2022.02.19 @ 19:26:34 End 2022.02.19 @ 19:49:41 Sessions 1 Manual Loads 0 Difficulty Rogue Special Mode None Game No. 255 Rogue 128 Adventurer 125 Explorer 2 Win Type - Total 45 Types 38/3/2/0/1/0/0/0/1 Lore% 69 Gallery% 86 Achievement% 67 Wizard Run 0 Options --------- ASCII 0 Keyboard 1 Movement Numpad Keybinds 0 Fullscreen 1 Font 36/TerminusFine Map View 76x50 Tactical HUD 1 Map Filters NONE Filters NONE Steam 1 RUN: 29555d3c-c09a-47f3-ac52-17ea2095a4cc